fUST/lending_fUST_20250502
["ID","MTS","AMOUNT","RATE_DAILY","PERIOD"]
[359579118,1746141032629,-300.0,0.00018128,2]
[359579120,1746141032639,-9.43034866,0.00018129,2]
[359579122,1746141032651,-290.56965134,0.00018129,2]
[359579124,1746141032662,-300.0,0.00018129,2]
[359579126,1746141032672,-300.0,0.00018129,2]
[359579128,1746141032682,-1200.0,0.00018129,2]
[359579130,1746141032692,-500.0,0.0001813,2]
[359579132,1746141032701,-500.0,0.0001813,2]
[359579134,1746141032711,-500.0,0.0001813,2]
[359579136,1746141032721,-500.0,0.0001813,2]
[359579138,1746141032730,-625.82,0.0001813,3]
[359579140,1746141032741,-500.0,0.00018131,2]
[359579142,1746141032751,-466.1543874,0.00018131,2]
[359579144,1746141032761,-500.0,0.00018131,2]
[359579147,1746141032771,-500.0,0.00018131,2]
[359579149,1746141032780,-500.0,0.00018131,2]
[359579151,1746141032790,-500.0,0.00018131,2]
[359579153,1746141032799,-245.36918048,0.00018131,2]
[359579155,1746141032809,-500.0,0.00018131,2]
[359579158,1746141032818,-500.0,0.00018131,2]
[359579160,1746141032827,-500.0,0.00018131,2]
[359579162,1746141032841,-473.11509261,0.00018131,2]
[359579164,1746141032851,-500.0,0.00018131,2]
[359579166,1746141032861,-500.0,0.00018131,2]
[359579168,1746141032871,-500.0,0.00018131,2]
[359579171,1746141032880,-617.11836616,0.00018131,2]
[359579173,1746141032890,-500.0,0.00018131,2]
[359579175,1746141032900,-500.0,0.00018131,2]
[359579176,1746141032909,-500.0,0.00018131,2]
[359579177,1746141032919,-500.0,0.00018131,2]
[359579178,1746141032928,-500.0,0.00018131,2]
[359579179,1746141032937,-500.0,0.00018131,2]
[359579180,1746141032947,-500.0,0.00018131,2]
[359579181,1746141032957,-500.0,0.00018131,2]
[359579182,1746141032968,-500.0,0.00018132,2]
[359579183,1746141032979,-516.81910635,0.00018132,2]
[359579184,1746141032990,-500.0,0.00018132,2]
[359579185,1746141033001,-611.77307926,0.00018132,2]
[359579186,1746141033011,-500.0,0.00018132,2]
[359579187,1746141033021,-500.0,0.00018132,2]
[359579188,1746141033031,-233.82334259,0.00018132,2]
[359579189,1746141033042,-500.0,0.00018132,2]
[359579190,1746141033052,-500.0,0.00018132,2]
[359579191,1746141033062,-500.0,0.00018132,2]
[359579192,1746141033072,-50000.0,0.00018133,2]
[359579193,1746141033082,-368952.82004888,0.0001814,2]
[359579194,1746141033091,-2435.85446413,0.000183,2]
[359579195,1746141033101,-178.858662,0.00019178,2]
[359579196,1746141033111,-269.4918856,0.00019329,2]
[359579197,1746141033121,-420.0,0.00019778,2]
[359579198,1746141033131,-420.0,0.00019778,2]
[359579199,1746141033141,-420.0,0.00019778,2]
[359579200,1746141033152,-2435.85446409,0.00019863,2]
[359579201,1746141033163,-1680.0,0.00019875,2]
[359579202,1746141033172,-151.25846906,0.00020058,2]
[359579203,1746141033182,-207.4,0.00020058,2]
[359579204,1746141033193,-324.35783746,0.00020205,2]
[359579205,1746141033202,-546.00455533,0.00020281,2]
[359579206,1746141033213,-2435.85446409,0.00021426,2]
[359579207,1746141033223,-335.16977814,0.00021427,2]
[359579208,1746141033233,-587.0,0.00021577,2]
[359579209,1746141033243,-301.0,0.00021577,2]
[359579210,1746141033253,-194.0,0.00021577,2]
[359579211,1746141033263,-608.0,0.0002179,2]
[359579212,1746141033272,-500.0,0.00021918,2]
[359579213,1746141033282,-559.35210516,0.00021918,2]
[359579214,1746141033291,-500.0,0.00021918,2]
[359579215,1746141033300,-160.0,0.0002209,2]
[359579216,1746141033310,-6124.04235304,0.000229,8]
[359579217,1746141033319,-6124.04235304,0.000229,8]
[359579218,1746141033329,-6124.04235304,0.000229,8]
[359579219,1746141033338,-6124.04235304,0.000229,8]
[359579220,1746141033348,-6124.04235304,0.000229,8]
[359579221,1746141033358,-6124.04235304,0.000229,8]
[359579222,1746141033368,-2435.85446409,0.00022988,2]
[359579223,1746141033377,-10000.0,0.00023134,2]
[359579224,1746141033387,-500.0,0.00023149,2]
[359579225,1746141033397,-199.582643,0.00023376,2]
[359579226,1746141033407,-6124.04235304,0.00023452,9]
[359579227,1746141033418,-823.0,0.0002354,2]
[359579228,1746141033427,-184.486,0.00023626,4]
[359579229,1746141033438,-403.0,0.00023669,2]
[359579230,1746141033448,-403.0,0.00023669,2]
[359579231,1746141033458,-178.858662,0.00023744,2]
[359579232,1746141033468,-150.0,0.00024081,2]
[359579233,1746141033478,-150.0,0.00024081,2]
[359579234,1746141033488,-194.805,0.00024081,2]
[359579235,1746141033499,-151.376,0.00024081,2]
[359579236,1746141033509,-150.0,0.00024081,2]
[359579237,1746141033519,-150.0,0.00024081,2]
[359579238,1746141033532,-159.979,0.00024081,2]
[359579239,1746141033541,-172.961,0.00024081,2]
[359579240,1746141033552,-199.772457,0.00024081,7]
[359579241,1746141033563,-199.772457,0.00024081,7]
[359579242,1746141033574,-267.743844,0.00024192,2]
[359579243,1746141033585,-151.0,0.000242,5]
[359579244,1746141033596,-151.0,0.000242,8]
[359579245,1746141033607,-4081.78706658,0.0002421,10]
[359579246,1746141033659,-500.0,0.00018131,2]
[359579247,1746141033669,-500.0,0.00018131,2]
[359579248,1746141033679,-2042.25528646,0.0002421,10]
[359579249,1746141033689,-500.0,0.00024368,2]
[359579250,1746141033699,-5274.16159939,0.00024399,3]
[359579251,1746141033709,-73095.45437049,0.000244,2]
[359579252,1746141034391,-12887.01265757,0.000244,2]
[359579256,1746141038570,-500.0,0.00018131,2]
[359579257,1746141038580,-500.0,0.00018131,2]
[359579258,1746141038590,-500.0,0.00018131,2]
[359579259,1746141038600,-500.0,0.00018131,2]
[359579260,1746141038610,-189.90447075,0.00018131,2]
[359579261,1746141038619,-500.0,0.00018131,2]
[359579263,1746141038629,-500.0,0.00018131,2]
[359579264,1746141038639,-458.01605803,0.00018131,2]
[359579267,1746141038651,-41.98394197,0.00018131,2]
[359579268,1746141038661,-500.0,0.00018131,2]
[359579270,1746141038670,-500.0,0.00018131,2]
[359579271,1746141038679,-500.0,0.00018131,2]
[359579273,1746141038689,-500.0,0.00018131,2]
[359579275,1746141038698,-500.0,0.00018131,2]
[359579277,1746141038708,-17431.12456058,0.000244,2]
[359579279,1746141038718,-151.0,0.000244,7]
[359579281,1746141038727,-151.0,0.000244,7]
[359579283,1746141038736,-248.581676,0.000244,7]
[359579285,1746141038745,-151.0,0.000244,7]
[359579287,1746141038755,-151.0,0.000244,7]
[359579290,1746141038764,-151.0,0.000244,7]
[359579291,1746141038774,-305.09528,0.000244,7]
[359579294,1746141038783,-305.09528,0.000244,7]
[359579296,1746141038793,-151.0,0.000244,7]
[359579297,1746141038802,-175.612867,0.000244,7]
[359579299,1746141038812,-175.612867,0.000244,7]
[359579301,1746141038821,-253.718316,0.000244,7]
[359579303,1746141038831,-151.0,0.000244,7]
[359579305,1746141038841,-386.215635,0.000244,2]
[359579307,1746141038851,-386.215635,0.000244,2]
[359579309,1746141038861,-151.0,0.000244,7]
[359579311,1746141038870,-151.0,0.000244,7]
[359579313,1746141038880,-151.0,0.000244,7]
[359579315,1746141038890,-151.0,0.000244,7]
[359579317,1746141038901,-151.0,0.000244,7]
[359579320,1746141038911,-151.0,0.000244,7]
[359579321,1746141038921,-151.0,0.000244,7]
[359579323,1746141038930,-151.0,0.000244,7]
[359579326,1746141038940,-232.15399,0.000244,7]
[359579327,1746141038949,-232.15399,0.000244,7]
[359579330,1746141038961,-199.772457,0.000244,7]
[359579332,1746141038972,-199.772457,0.000244,7]
[359579333,1746141038982,-151.0,0.000244,7]
[359579335,1746141038991,-151.0,0.000244,7]
[359579337,1746141039002,-151.0,0.000244,7]
[359579340,1746141039013,-151.0,0.000244,7]
[359579342,1746141039022,-151.0,0.000244,7]
[359579344,1746141039034,-391.518007,0.000244,7]
[359579346,1746141039046,-391.518007,0.000244,7]
[359579347,1746141039056,-151.0,0.000244,7]
[359579349,1746141039066,-151.0,0.000244,7]
[359579351,1746141039075,-151.0,0.000244,7]
[359579353,1746141039084,-151.0,0.000244,7]
[359579355,1746141039093,-151.0,0.000244,7]
[359579357,1746141039103,-194.0981,0.000244,7]
[359579359,1746141039113,-194.0981,0.000244,7]
[359579361,1746141039125,-292.956154,0.000244,7]
[359579363,1746141039136,-168.338232,0.000244,7]
[359579365,1746141039146,-2760.603911,0.000244,2]
[359579367,1746141039156,-2760.603911,0.000244,2]
[359579369,1746141039166,-2760.603911,0.000244,2]
[359579371,1746141039175,-2760.603911,0.000244,2]
[359579373,1746141039185,-151.0,0.000244,7]
[359579375,1746141039194,-151.0,0.000244,7]
[359579377,1746141039203,-151.0,0.000244,7]
[359579379,1746141039212,-214.348706,0.000244,7]
[359579381,1746141039222,-151.0,0.000244,7]
[359579383,1746141039231,-151.0,0.000244,7]
[359579385,1746141039240,-151.0,0.000244,7]
[359579388,1746141039250,-151.0,0.000244,7]
[359579389,1746141039259,-151.0,0.000244,7]
[359579391,1746141039269,-151.0,0.000244,7]
[359579394,1746141039278,-151.0,0.000244,7]
[359579396,1746141039288,-841.10298755,0.000244,7]
[359579397,1746141039297,-249.878181,0.000244,7]
[359579400,1746141039307,-12595.7684382,0.000244,7]
[359579402,1746141039317,-249.878181,0.000244,7]
[359579404,1746141039326,-295.580749,0.000244,7]
[359579406,1746141039336,-295.580749,0.000244,7]
[359579407,1746141039345,-821.083011,0.000244,7]
[359579410,1746141039355,-821.083011,0.000244,7]
[359579412,1746141039364,-295.580749,0.000244,7]
[359579414,1746141039374,-295.580749,0.000244,7]
[359579416,1746141039384,-283.407454,0.000244,7]
[359579417,1746141039393,-821.083011,0.000244,7]
[359579419,1746141039403,-283.407454,0.000244,7]
[359579420,1746141039413,-821.083011,0.000244,7]
[359579421,1746141039422,-283.407454,0.000244,7]
[359579423,1746141039432,-283.407454,0.000244,7]
[359579425,1746141039442,-160.0,0.000244,7]
[359579427,1746141039451,-160.0,0.000244,7]
[359579429,1746141039461,-160.0,0.000244,7]
[359579430,1746141039471,-156.936783,0.000244,7]
[359579431,1746141039480,-160.0,0.000244,7]
[359579432,1746141039491,-160.0,0.000244,7]
[359579433,1746141039500,-151.0,0.000244,7]
[359579434,1746141039509,-159.661274,0.000244,7]
[359579435,1746141039519,-151.0,0.000244,7]
[359579436,1746141039529,-151.0,0.000244,7]
[359579437,1746141039539,-151.0,0.000244,7]
[359579438,1746141039548,-151.0,0.000244,7]
[359579439,1746141039558,-151.0,0.000244,7]
[359579440,1746141039567,-160.0,0.000244,7]
[359579441,1746141039577,-421.4777418,0.000244,7]
[359579442,1746141039586,-182.07995741,0.000244,7]
[359579443,1746141039596,-160.0,0.000244,7]
[359579444,1746141039605,-151.0,0.000244,7]
[359579445,1746141039615,-151.0,0.000244,7]
[359579446,1746141039625,-28919.83999842,0.000244,2]
[359579447,1746141039635,-2435.85446409,0.00024551,2]
[359579448,1746141039644,-545.0,0.00024646,2]
[359579449,1746141039654,-707.0,0.00024646,2]
[359579450,1746141039664,-2245.0,0.00024646,2]
[359579451,1746141039673,-14819.81345204,0.00024649,2]
[359580093,1746141047127,-19279.67008171,0.00024649,2]
[359580547,1746141072673,370000.0,0.00018033,2]
[359580549,1746141409282,-441.45723251,0.00018128,2]
[359580550,1746141409307,-624.12426291,0.00018128,2]
[359580551,1746141409339,-500.0,0.00018128,2]
[359580552,1746141409370,-500.0,0.00018128,2]
[359580553,1746141409401,-500.0,0.00018128,2]
[359580554,1746141409433,-500.0,0.00018128,2]
[359580555,1746141409469,-500.0,0.00018128,2]
[359580556,1746141409501,-500.0,0.00018128,2]
[359580557,1746141409532,-357.22449823,0.00018128,2]
[359580558,1746141409562,-500.0,0.00018128,2]
[359580559,1746141409598,-500.0,0.00018128,2]
[359580560,1746141409630,-500.0,0.00018128,2]
[359580561,1746141409663,-500.0,0.00018128,2]
[359580562,1746141409695,-500.0,0.00018128,2]
[359580563,1746141409726,-500.0,0.00018128,2]
[359580564,1746141409758,-500.0,0.00018128,2]
[359580565,1746141409789,-500.0,0.00018128,2]
[359580566,1746141409820,-500.0,0.00018128,2]
[359580567,1746141409853,-500.0,0.00018128,2]
[359580568,1746141409882,-500.0,0.00018128,2]
[359580569,1746141409915,-500.0,0.00018128,2]
[359580570,1746141409946,-500.0,0.00018128,2]
[359580571,1746141409978,-500.0,0.00018128,2]
[359580572,1746141410010,-500.0,0.00018128,2]
[359580573,1746141410040,-500.0,0.00018128,2]
[359580574,1746141410076,-500.0,0.00018128,2]
[359580575,1746141410106,-500.0,0.00018128,2]
[359580576,1746141410138,-500.0,0.00018128,2]
[359580577,1746141410167,-615.29362046,0.00018128,2]
[359580578,1746141410197,-500.0,0.00018128,2]
[359580579,1746141410228,-500.0,0.00018128,2]
[359580580,1746141410257,-500.0,0.00018128,2]
[359580581,1746141410285,-500.0,0.00018128,2]
[359580582,1746141410315,-500.0,0.00018128,2]
[359580583,1746141410345,-500.0,0.00018128,2]
[359580584,1746141410375,-500.0,0.00018128,2]
[359580585,1746141410404,-500.0,0.00018128,2]
[359580586,1746141410435,-500.0,0.00018128,2]
[359580587,1746141410458,-300.0,0.00018128,2]
[359580588,1746141410481,-300.0,0.00018128,2]
[359580589,1746141410503,-220.93177949,0.00018129,2]
[359580590,1746141410524,-160.0,0.0001813,2]
[359580591,1746141410548,-10294.6479964,0.0001813,2]
[359580592,1746141410570,-420.0,0.00019777,2]
[359580593,1746141410593,-587.0,0.00021576,2]
[359580594,1746141410619,-4490.9643925,0.000229,8]
[359580595,1746141410645,-4490.96439222,0.000229,8]
[359580596,1746141410672,-4490.96439222,0.000229,8]
[359580597,1746141410698,-4490.96439222,0.000229,8]
[359580598,1746141410724,-4490.96439222,0.000229,8]
[359580599,1746141410750,-4490.96439222,0.00023521,9]
[359580600,1746141410774,-823.0,0.00023539,2]
[359580601,1746141410796,-286.283637,0.00023649,2]
[359580602,1746141410819,-3700.4551686,0.0002365,2]
[359580603,1746141410841,-1000.0,0.00023657,5]
[359580606,1746141522075,-265.00542295,0.00018128,2]
[359580607,1746141527103,-151.01394286,0.00018128,2]
[359580608,1746141530915,-83.98063419,0.00018128,2]
[359580609,1746141530947,-216.01936581,0.00018128,2]
[359580611,1746141725617,3597.34407454,0.00018028,2]
[359580633,1746142231961,-286.185767,0.00023385,2]
[359580634,1746142231971,-861.9914497,0.00023477,2]
[359580636,1746142231981,-184.522174,0.00023478,2]
[359580638,1746142231991,-300.0,0.0002433,2]
[359580639,1746142232000,-1200.0,0.0002433,2]
[359580640,1746142232010,-300.0,0.0002433,2]
[359580642,1746142232019,-545.0,0.00024331,2]
[359580644,1746142232029,-310.143,0.00024331,2]
[359580645,1746142232039,-403.0,0.00024331,2]
[359580646,1746142232048,-500.0,0.00024396,2]
[359580647,1746142232058,-552.83438264,0.00024396,2]
[359580648,1746142232068,-500.0,0.00024396,2]
[359580649,1746142232077,-22906.19123591,0.00024397,2]
[359580650,1746142232087,-274.585752,0.00024399,7]
[359580651,1746142232096,-274.585752,0.00024399,7]
[359580652,1746142232106,-151.0,0.000244,7]
[359580653,1746142232115,-151.0,0.000244,7]
[359580654,1746142232126,-274.585752,0.000244,7]
[359580657,1746142232135,-274.585752,0.000244,7]
[359580659,1746142232144,-274.585752,0.000244,7]
[359580661,1746142232153,-274.585752,0.000244,7]
[359580663,1746142232163,-558.7348858,0.00024502,2]
[359580666,1746142232173,-691.62,0.00024541,3]
[359580668,1746142232182,-345.81,0.00024541,3]
[359580670,1746142232192,-172.9,0.00024541,3]
[359580672,1746142232202,-500.0,0.0002455,2]
[359580674,1746142232211,-413.67633981,0.0002455,2]
[359580676,1746142232220,-500.0,0.0002455,2]
[359580677,1746142232230,-500.0,0.0002455,2]
[359580678,1746142232239,-361.77337444,0.0002455,2]
[359580680,1746142232248,-500.0,0.0002455,2]
[359580682,1746142232258,-628.24115548,0.0002455,2]
[359580685,1746142232267,-500.0,0.0002455,2]
[359580687,1746142232276,-591.54647361,0.0002455,2]
[359580690,1746142232285,-25055.38084223,0.00024551,2]
[359580749,1746142246643,-707.0,0.00023976,2]
[359580750,1746142246654,-518.75,0.00024541,3]
[359580751,1746142246665,-9242.79410518,0.00024551,2]
[359580756,1746142884391,6000.0,0.000181,2]
[359580757,1746142902710,3000.0,0.00025,30]
[359580833,1746143432383,-300.0,0.00023089,2]
[359580836,1746143432392,-1200.0,0.00023089,2]
[359580839,1746143432402,-300.0,0.00023089,2]
[359580842,1746143432411,-500.0,0.0002309,2]
[359580845,1746143432421,-500.0,0.0002309,2]
[359580848,1746143432431,-500.0,0.0002309,2]
[359580852,1746143432441,-500.0,0.0002309,2]
[359580854,1746143432451,-500.0,0.0002309,2]
[359580856,1746143432460,-500.0,0.0002309,2]
[359580858,1746143432469,-500.0,0.0002309,2]
[359580860,1746143432479,-500.0,0.0002309,2]
[359580862,1746143432489,-500.0,0.0002309,2]
[359580864,1746143432498,-500.0,0.0002309,2]
[359580865,1746143432508,-500.0,0.0002309,2]
[359580867,1746143432517,-500.0,0.0002309,2]
[359580869,1746143432527,-500.0,0.0002309,2]
[359580871,1746143432537,-500.0,0.0002309,2]
[359580872,1746143432546,-500.0,0.0002309,2]
[359580873,1746143432556,-500.0,0.0002309,2]
[359580874,1746143432565,-500.0,0.0002309,2]
[359580875,1746143432575,-500.0,0.0002309,2]
[359580876,1746143432584,-500.0,0.0002309,2]
[359580877,1746143432595,-500.0,0.0002309,2]
[359580878,1746143432604,-500.0,0.0002309,2]
[359580879,1746143432613,-500.0,0.0002309,2]
[359580880,1746143432623,-500.0,0.0002309,2]
[359580881,1746143432633,-500.0,0.0002309,2]
[359580882,1746143432643,-500.0,0.0002309,2]
[359580883,1746143432652,-500.0,0.0002309,2]
[359580884,1746143432663,-500.0,0.0002309,2]
[359580885,1746143432672,-500.0,0.0002309,2]
[359580886,1746143432682,-500.0,0.0002309,2]
[359580887,1746143432691,-500.0,0.0002309,2]
[359580888,1746143432701,-500.0,0.0002309,2]
[359580889,1746143432711,-500.0,0.0002309,2]
[359580890,1746143432721,-500.0,0.0002309,2]
[359580891,1746143432731,-500.0,0.0002309,2]
[359580892,1746143432740,-500.0,0.0002309,2]
[359580893,1746143432750,-500.0,0.0002309,2]
[359580894,1746143432759,-500.0,0.0002309,2]
[359580895,1746143432769,-500.0,0.0002309,2]
[359580896,1746143432778,-500.0,0.0002309,2]
[359580897,1746143432787,-500.0,0.0002309,2]
[359580898,1746143432797,-446.94604851,0.0002309,2]
[359580899,1746143432807,-8212.5412588,0.00023091,2]
[359580900,1746143432817,-500.0,0.00023094,2]
[359580901,1746143432827,-500.0,0.00023094,2]
[359580902,1746143432837,-253.24136211,0.00023094,2]
[359580903,1746143432846,-500.0,0.00023094,2]
[359580904,1746143432856,-264.08253153,0.00023094,2]
[359580905,1746143432865,-289.76880884,0.00023094,2]
[359580906,1746143432874,-500.0,0.00023094,2]
[359580907,1746143432885,-339.57343787,0.00023094,2]
[359580908,1746143432897,-24900.0,0.00023095,2]
[359580909,1746143432907,-500.0,0.000231,2]
[359580910,1746143432916,-157.10794172,0.000234,2]
[359580911,1746143432926,-300.0,0.000234,2]
[359580912,1746143432935,-500.0,0.000234,2]
[359580913,1746143432945,-568.03491784,0.000234,2]
[359580914,1746143432954,-629.34070282,0.000234,2]
[359580915,1746143432964,-500.0,0.000234,2]
[359580916,1746143432973,-500.0,0.000234,2]
[359580917,1746143432983,-500.0,0.000234,2]
[359580918,1746143432992,-500.0,0.000234,2]
[359580919,1746143433002,-500.0,0.000234,2]
[359580920,1746143433012,-500.0,0.000234,2]
[359580921,1746143433021,-184.84404,0.00023408,2]
[359580922,1746143433031,-3362.86128003,0.00023776,2]
[359580923,1746143433040,-250.0,0.00023876,2]
[359580924,1746143433050,-1288.7,0.00023965,3]
[359580925,1746143433060,-644.35,0.00023965,3]
[359580926,1746143433070,-3362.24264293,0.00023975,3]
[359580927,1746143433083,-20261.15149269,0.00023975,3]
[359580928,1746143433092,-5023.38298911,0.00023975,2]
[359580929,1746143433109,-1100.0,0.00023975,2]
[359580930,1746143433185,-3843.3876127,0.00023975,2]
[359580931,1746143433197,-41969.13878403,0.00023975,2]
[359581402,1746143443401,-413.09030773,0.00023975,2]
[359581405,1746143443411,-117.08796718,0.00023975,3]
[359582478,1746143454332,150.0,0.00018,2]
[359582677,1746143535967,200.0,0.00025,30]
[359582678,1746143536425,200.0,0.00025,30]
[359582679,1746143537120,200.0,0.00025,30]
[359582680,1746143537502,200.0,0.00025,30]
[359582681,1746143538051,202.0,0.00025,30]
[359582682,1746143669718,150.0,0.00021,10]
[359582683,1746143817530,150.0,0.00025,30]
[359582685,1746144099356,200.0,0.00025,30]
[359582688,1746144505982,-300.0,0.00027,120]
[359582689,1746144506914,-409.119544,0.00027397,120]
[359582692,1746144586847,0.880456,0.00027397,120]
[359582725,1746144632287,-251.554528,0.0002128,2]
[359582727,1746144632297,-326.40848244,0.00021875,2]
[359582730,1746144632319,-1645.82502305,0.00022093,2]
[359582732,1746144632329,-300.0,0.0002219,2]
[359582734,1746144632340,-309.50798866,0.0002219,2]
[359582736,1746144632350,-500.0,0.0002219,2]
[359582739,1746144632360,-500.0,0.0002219,2]
[359582741,1746144632370,-500.0,0.0002219,2]
[359582743,1746144632383,-500.0,0.0002219,2]
[359582745,1746144632392,-500.0,0.0002219,2]
[359582747,1746144632402,-324.28163738,0.0002219,2]
[359582749,1746144632412,-47426.42892961,0.00022192,2]
[359582751,1746144632422,-534.85777207,0.00022197,2]
[359582753,1746144632432,-552.83816618,0.00022197,2]
[359582755,1746144632442,-177.26895348,0.00022197,2]
[359582757,1746144632452,-500.0,0.00022197,2]
[359582759,1746144632462,-437.70140651,0.00022197,2]
[359582761,1746144632472,-1776.68312928,0.00022198,2]
[359582763,1746144632508,-500.0,0.0002219,2]
[359582764,1746144632518,-500.0,0.0002219,2]
[359582765,1746144632527,-12531.41868015,0.00022198,2]
[359582772,1746144638223,-500.0,0.0002219,2]
[359582773,1746144638233,-500.0,0.0002219,2]
[359582774,1746144638244,-500.0,0.0002219,2]
[359582775,1746144638254,-500.0,0.0002219,2]
[359582776,1746144638264,-500.0,0.0002219,2]
[359582777,1746144638275,-500.0,0.0002219,2]
[359582778,1746144638284,-471.39362602,0.0002219,2]
[359582780,1746144638296,-28.60637398,0.0002219,2]
[359582782,1746144638306,-500.0,0.0002219,2]
[359582784,1746144638317,-500.0,0.0002219,2]
[359582786,1746144638326,-500.0,0.0002219,2]
[359582788,1746144638336,-371.39362602,0.0002219,2]
[359582791,1746144638348,-128.60637398,0.0002219,2]
[359582793,1746144638357,-500.0,0.0002219,2]
[359582794,1746144638367,-500.0,0.0002219,2]
[359582795,1746144638377,-500.0,0.0002219,2]
[359582796,1746144638389,-500.0,0.0002219,2]
[359582797,1746144638398,-409.16440253,0.0002219,2]
[359582798,1746144638413,-90.83559747,0.0002219,2]
[359582799,1746144638423,-590.79514726,0.0002219,2]
[359582800,1746144638434,-500.0,0.0002219,2]
[359582801,1746144638444,-500.0,0.0002219,2]
[359582802,1746144638454,-500.0,0.0002219,2]
[359582803,1746144638464,-308.16774516,0.0002219,2]
[359582887,1746144684748,400.0,0.00025,30]
[359582889,1746144951541,1000.0,0.00025,30]
[359582890,1746144983104,-193.09858075,0.00019998,2]
[359582891,1746144983128,-2806.90141925,0.0002,2]
[359582895,1746145240681,-750.0,0.000199,2]
[359582896,1746145306808,-242.0,0.000199,2]
[359582897,1746145306830,-4.09858075,0.0002,2]
[359582898,1746145306850,-160.0,0.00020097,2]
[359582915,1746145803367,307.68948832,0.00018,2]
[359582939,1746145832457,-171.528769,0.00020529,2]
[359582942,1746145832468,-2100.44253095,0.00021,2]
[359582944,1746145832478,-251.554529,0.00021182,2]
[359582945,1746145832488,-160.0,0.00021428,2]
[359582946,1746145832498,-300.0,0.00021434,2]
[359582948,1746145832507,-500.0,0.00021435,2]
[359582949,1746145832518,-500.0,0.00021435,2]
[359582950,1746145832528,-500.0,0.00021435,2]
[359582951,1746145832538,-500.0,0.00021435,2]
[359582952,1746145832547,-500.0,0.00021435,2]
[359582953,1746145832557,-500.0,0.00021435,2]
[359582955,1746145832567,-500.0,0.00021435,2]
[359582956,1746145832576,-500.0,0.00021435,2]
[359582957,1746145832586,-328.22240994,0.00021435,2]
[359582958,1746145832674,-171.77759006,0.00021435,2]
[359582959,1746145832685,-390.87790965,0.00021435,2]
[359582960,1746145832694,-20.32137469,0.00021435,2]
[359582961,1746145832707,-479.67862531,0.00021435,2]
[359582962,1746145832717,-500.0,0.00021435,2]
[359582964,1746145832727,-500.0,0.00021435,2]
[359582965,1746145832737,-500.0,0.00021435,2]
[359582966,1746145832751,-500.0,0.00021435,2]
[359582967,1746145832761,-500.0,0.00021435,2]
[359582968,1746145832771,-500.0,0.00021435,2]
[359582969,1746145832781,-500.0,0.00021435,2]
[359582970,1746145832791,-500.0,0.00021435,2]
[359582971,1746145832802,-500.0,0.00021435,2]
[359582972,1746145832811,-500.0,0.00021435,2]
[359582973,1746145832822,-500.0,0.00021435,2]
[359582974,1746145832831,-500.0,0.00021435,2]
[359582975,1746145832841,-500.0,0.00021435,2]
[359582976,1746145832851,-500.0,0.00021435,2]
[359582977,1746145832862,-500.0,0.00021435,2]
[359582978,1746145832874,-500.0,0.00021435,2]